[Event "Satka Autumn 2018"]
[Site "Satka"]
[Date "2018.09.15"]
[Round "5"]
[White "Charochkina, Daria"]
[Black "Schepetkova, Margarita"]
[Result "1-0"]
[ECO "B12"]
[WhiteElo "2336"]
[BlackElo "2238"]
[Annotator "ChessBase"]
[PlyCount "107"]
[EventDate "2018.09.11"]
[EventType "swiss"]
[EventCountry "RUS"]
[SourceTitle "playchess.com"]
[Source "ChessBase"]
[SourceQuality "1"]
[TimeControl "40/5400+30:1800+30"]

1. e4 {[%emt 0:00:04]} c6 {[%emt 0:00:00]} 2. d4 {[%emt 0:00:05]} d5 {[%emt 0:00:00]} 3. e5 {[%emt 0:00:06]} c5 {[%emt 0:00:00]} 4. dxc5 {[%emt 0:00:06]} e6 {[%emt 0:00:00]} 5. a3 {[%emt 0:00:22]} Nc6 {[%emt 0:00:05]} 6. Nf3 {[%emt 0:00:16]} Bxc5 {[%emt 0:00:13]} 7. b4 {[%emt 0:00:13]} Bb6 {[%emt 0:00:16]} 8. Bb2 {[%emt 0:00:13]} f6 {[%emt 0:00:46]} 9. Bd3 {[%emt 0:00:12]} fxe5 {[%emt 0:00:16]} 10. O-O {[%emt 0:00:19]} Nf6 {[%emt 0:02:28]} 11. Nxe5 {[%emt 0:00:17]} O-O {[%emt 0:02:31]} 12. Nd2 {[%emt 0:00:15]} Nxe5 {[%emt 0:16:09]} 13. Bxe5 {[%emt 0:00:07]} Bd7 {[%emt 0:00:10]} 14. Qe2 {[%emt 0:01:18]} a5 {[%emt 0:10:11]} 15. b5 {[%emt 0:03:13]} Qe7 {[%emt 0:06:33]} 16. h3 {[%emt 0:03:15]} Be8 {[%emt 0:04:55]} 17. c4 {[%emt 0:19:38]} Bh5 {[%emt 0:12:27]} 18. g4 {[%emt 0:00:05]} Bg6 {[%emt 0:06:45]} 19. Bxg6 {[%emt 0:14:47]} hxg6 {[%emt 0:00:02]} 20. Qd3 {[%emt 0:00:11]} Kh7 {[%emt 0:00:15]} 21. Rae1 {[%emt 0:06:31]} Rad8 {[%emt 0:06:41]} 22. Qg3 {[%emt 0:00:21]} Ne4 {[%emt 0:01:30]} 23. Nxe4 {[%emt 0:00:33]} dxe4 {[%emt 0:00:03]} 24. Rxe4 {[%emt 0:01:07]} Rd2 {[%emt 0:03:40]} 25. Rf4 {[%emt 0:06:46]} Rxf4 {[%emt 0:00:42]} 26. Bxf4 {[%emt 0:00:22]} Rd4 {[%emt 0:04:06]} 27. Rc1 {[%emt 0:02:20]} Qd7 {[%emt 0:08:35]} 28. Be3 {[%emt 0:06:52]} Rd1+ {[%emt 0:00:08]} 29. Rxd1 {[%emt 0:00:05]} Qxd1+ {[%emt 0:00:02]} 30. Kg2 {[%emt 0:00:10]} Bxe3 {[%emt 0:00:04]} 31. Qxe3 {[%emt 0:00:06]} a4 {[%emt 0:00:15]} 32. Qxe6 {[%emt 0:00:28]} Qd3 {[%emt 0:00:44]} 33. Qe7 {[%emt 0:02:53]} Qxc4 {[%emt 0:03:44]} 34. Qxb7 {[%emt 0:00:06]} Qb3 {[%emt 0:00:10]} 35. b6 {[%emt 0:00:16]} Qxa3 {[%emt 0:00:07]} 36. Qc7 {[%emt 0:03:22]} Qd3 {[%emt 0:03:30]} 37. b7 {[%emt 0:00:06]} Qe4+ {[%emt 0:00:03]} 38. Kg3 {[%emt 0:00:40]} Qd3+ {[%emt 0:02:00]} 39. f3 {[%emt 0:03:14]} Qd4 {[%emt 0:01:04]} 40. b8=Q {[%emt 0:00:00]} Qg1+ {[%emt 0:00:00]} 41. Kh4 {[%emt 0:05:29]} Qe1+ {[%emt 0:01:16]} 42. Qg3 {[%emt 0:00:38]} Qe7+ {[%emt 0:01:37]} 43. g5 {[%emt 0:00:04]} a3 {[%emt 0:00:08]} 44. Qb3 {[%emt 0:08:23]} Qa7 {[%emt 0:01:53]} 45. Qa2 {[%emt 0:00:05]} Qd4+ {[%emt 0:05:41]} 46. f4 {[%emt 0:00:17]} Qd1 {[%emt 0:00:30]} 47. Qgxa3 {[%emt 0:00:42]} Qe1+ {[%emt 0:00:05]} 48. Kg4 {[%emt 0:00:04]} Qd1+ {[%emt 0:00:36]} 49. Kg3 {[%emt 0:00:16]} Qg1+ {[%emt 0:00:11]} 50. Qg2 {[%emt 0:00:33]} Qe1+ {[%emt 0:00:07]} 51. Kh2 {[%emt 0:00:18]} Qe8 {[%emt 0:00:14]} 52. Qf2 {[%emt 0:00:22]} Qb8 {[%emt 0:00:12]} 53. Qh4+ {[%emt 0:00:28]} Kg8 {[%emt 0:00:05]} 54. Qa2+ {[%emt 0:00:02]} 1-0

[Event "Satka Autumn 2018"]
[Site "Satka"]
[Date "2018.09.15"]
[Round "5"]
[White "Nosacheva, Mariya"]
[Black "Makarenko, Alexandra"]
[Result "1-0"]
[ECO "C78"]
[WhiteElo "2073"]
[BlackElo "2247"]
[Annotator "NA"]
[PlyCount "79"]
[EventDate "2018.09.11"]
[EventType "swiss"]
[EventCountry "RUS"]
[SourceTitle "playchess.com"]
[Source "ChessBase"]
[SourceQuality "1"]
[TimeControl "40/5400+30:1800+30"]

1. e4 {[%emt 0:00:00]} e5 {[%emt 0:00:00]} 2. Nf3 {[%emt 0:00:00]} Nc6 {[%emt 0:00:00]} 3. Bb5 {[%emt 0:00:00]} a6 {[%emt 0:00:00]} 4. Ba4 {[%emt 0:00:00]} Nf6 {[%emt 0:00:02]} 5. O-O {[%emt 0:00:00]} b5 {[%emt 0:00:17]} 6. Bb3 {[%emt 0:00:19]} Bb7 {[%emt 0:00:11]} 7. d3 {[%emt 0:03:05]} Be7 {[%emt 0:00:15]} 8. a4 {[%emt 0:00:19]} O-O {[%emt 0:00:27]} 9. Nc3 {[%emt 0:03:41]} b4 {[%emt 0:00:30]} 10. Nd5 {[%emt 0:00:55]} Na5 {[%emt 0:00:28]} 11. Nxe7+ {[%emt 0:00:55] C84: Closed Ruy Lopez: Unusual White 6th moves} (11. Ba2 b3 12. Nxe7+ Qxe7 13. cxb3 Nc6 14. Bd2 a5 15. Rc1 d6 16. Bc3 Nb4 17. Bb1 c5 18. Nh4 g6 19. f4 {1-0 (44) Klein,D (2501)-Lenic,L (2662) chess.com INT 2018}) 11... Qxe7 {[%emt 0:00:05]} 12. Ba2 {[%emt 0:00:12]} d5 {[%emt 0:00:35]} 13. exd5 {[%emt 0:01:08]} Qd6 {[%emt 0:00:04]} 14. Bd2 {[%emt 0:07:45]} Bxd5 $146 {[%emt 0:11:17]} ({Predecessor:} 14... Nxd5 15. Qe1 Rfe8 16. Bxd5 Qxd5 17. Bxb4 Nc6 18. Qd2 Re6 {1-0 (39) Priborsky,J (2331)-Zvara,P (2364) Bayern 2013}) 15. Bxd5 {[%emt 0:03:37]} Nxd5 {[%emt 0:00:50]} 16. Re1 {[%emt 0:05:42]} Rae8 {[%emt 0:07:56]} 17. c3 {[%emt 0:06:40]} c5 {[%emt 0:03:17]} 18. cxb4 {[%emt 0:09:25]} Nxb4 {[%emt 0:05:57]} 19. Bxb4 {[%emt 0:04:43]} cxb4 {[%emt 0:00:06]} 20. Rc1 {[%emt 0:02:23]} f6 {[%emt 0:00:46]} 21. Qe2 {[%emt 0:03:37]} Rc8 {[%emt 0:06:56]} (21... Nb3 $15 22. Rc4 Nc5) 22. Rxc8 {[%emt 0:04:38]} Rxc8 {[%emt 0:01:14] [#]} 23. d4 $1 {[%emt 0:00:06]} exd4 {[%emt 0:30:20]} 24. Nxd4 {[%emt 0:01:02]} Qe5 {[%emt 0:00:50]} 25. Qd1 {[%emt 0:10:32]} Qd5 $1 {[%emt 0:02:01]} 26. Qg4 {[%emt 0:00:54]} Rc4 $1 {[%emt 0:00:15]} 27. h3 {[%emt 0:00:29]} ({Don't blunder} 27. Re8+ $2 Kf7 $19) 27... g6 $1 {[%emt 0:10:07]} ({Avoid the trap} 27... Rxd4 $2 28. Qc8+ Qd8 29. Re8+ Kf7 30. Rxd8 $18) 28. Re8+ {[%emt 0:09:19]} Kf7 {[%emt 0:06:29]} 29. Qe2 $1 {[%emt 0:00:10]} ({Nicht} 29. Re4 $2 Nc6 $19) 29... Qd7 $2 {[%emt 0:00:52] [#]} (29... Qd6 $15 30. Nf3 Rc1+ 31. Ne1 Nc6) 30. Rh8 $1 {[%emt 0:00:05]} Kg7 {[%emt 0:00:58] [#]} 31. Rd8 $3 {[%emt 0:00:07]} Rc1+ $18 {[%emt 0:06:48]} 32. Kh2 {[%emt 0:00:06]} Qc7+ {[%emt 0:00:02]} 33. g3 {[%emt 0:00:11]} Qe5 {[%emt 0:03:18]} 34. Rd7+ {[%emt 0:07:21]} Kh6 {[%emt 0:01:54]} 35. Qd2+ {[%emt 0:01:36]} Qg5 {[%emt 0:00:04]} 36. f4 {[%emt 0:00:36]} Qc5 {[%emt 0:00:01]} 37. f5+ {[%emt 0:00:14]} g5 {[%emt 0:00:31]} 38. Qe2 {[%emt 0:00:12]} Nb3 {[%emt 0:02:44]} 39. Qh5+ {[%emt 0:00:06]} Kxh5 {[%emt 0:00:04]} 40. Rxh7# {[%emt 0:00:00]} 1-0

[Event "Satka Autumn 2018"]
[Site "Satka"]
[Date "2018.09.15"]
[Round "5"]
[White "Sosnina, Ekaterina"]
[Black "Kovanova, Baira"]
[Result "0-1"]
[ECO "C70"]
[WhiteElo "1955"]
[BlackElo "2363"]
[Annotator "ChessBase"]
[PlyCount "106"]
[EventDate "2018.09.11"]
[EventType "swiss"]
[EventCountry "RUS"]
[SourceTitle "playchess.com"]
[Source "ChessBase"]
[SourceQuality "1"]
[TimeControl "40/5400+30:1800+30"]

1. e4 {[%emt 0:00:00]} e5 {[%emt 0:00:00]} 2. Nf3 {[%emt 0:00:00]} Nc6 {[%emt 0:00:00]} 3. Bb5 {[%emt 0:00:00]} a6 {[%emt 0:00:00]} 4. Ba4 {[%emt 0:00:07]} Nge7 {[%emt 0:00:39]} 5. Nc3 {[%emt 0:01:38]} d6 {[%emt 0:02:24]} 6. d4 {[%emt 0:14:14]} b5 {[%emt 0:06:15]} 7. Bb3 {[%emt 0:00:10]} Nxd4 {[%emt 0:08:56]} 8. Nxd4 {[%emt 0:20:56]} exd4 {[%emt 0:01:37]} 9. Qf3 {[%emt 0:00:06]} Be6 {[%emt 0:02:45]} 10. Bxe6 {[%emt 0:00:09]} fxe6 {[%emt 0:00:06]} 11. Ne2 {[%emt 0:00:10]} e5 {[%emt 0:11:15]} 12. Bg5 {[%emt 0:03:48]} Qd7 {[%emt 0:02:13]} 13. Ng3 {[%emt 0:01:55]} Qe6 {[%emt 0:00:43]} 14. Nf5 {[%emt 0:03:34]} Qf7 {[%emt 0:05:59]} 15. a4 {[%emt 0:02:40]} b4 {[%emt 0:05:06]} 16. a5 {[%emt 0:10:44]} g6 {[%emt 0:12:39]} 17. Nh4 {[%emt 0:10:16]} Qxf3 {[%emt 0:06:28]} 18. Nxf3 {[%emt 0:00:06]} Bg7 {[%emt 0:01:33]} 19. h4 {[%emt 0:03:59]} Rb8 {[%emt 0:03:59]} 20. b3 {[%emt 0:01:11]} h6 {[%emt 0:05:36]} 21. Bxe7 {[%emt 0:00:26]} Kxe7 {[%emt 0:00:04]} 22. O-O {[%emt 0:00:44]} Rb5 {[%emt 0:02:25]} 23. Rfe1 {[%emt 0:01:43]} Rc5 {[%emt 0:02:33]} 24. Re2 {[%emt 0:00:32]} Rb8 {[%emt 0:00:35]} 25. Ne1 {[%emt 0:00:21]} Bf6 {[%emt 0:04:13]} 26. Nd3 {[%emt 0:01:03]} Rcb5 {[%emt 0:00:21]} 27. g3 {[%emt 0:00:07]} Kd7 {[%emt 0:01:02]} 28. Ra4 {[%emt 0:01:09]} c6 {[%emt 0:02:08]} 29. Nb2 {[%emt 0:00:43]} Bd8 {[%emt 0:00:28]} 30. Nc4 {[%emt 0:00:05]} Rc5 {[%emt 0:00:39]} 31. Kg2 {[%emt 0:03:13]} Ke6 {[%emt 0:01:23]} 32. Ra1 {[%emt 0:02:04]} Bc7 {[%emt 0:02:25]} 33. Kh3 {[%emt 0:00:15]} Rf8 {[%emt 0:01:10]} 34. h5 {[%emt 0:04:18]} g5 {[%emt 0:01:51]} 35. Rf1 {[%emt 0:03:14]} Rf3 {[%emt 0:01:48]} 36. Kg4 {[%emt 0:00:57]} Rc3 {[%emt 0:00:02]} 37. Rfe1 {[%emt 0:00:10]} Kf6 {[%emt 0:01:47]} 38. Ra1 {[%emt 0:01:24]} d5 {[%emt 0:01:03]} 39. exd5 {[%emt 0:00:22]} cxd5 {[%emt 0:00:02]} 40. Nb6 {[%emt 0:00:00]} Kg7 {[%emt 0:00:00]} 41. Nd7 {[%emt 0:02:03]} Rxc2 {[%emt 0:13:07]} 42. Nxc5 {[%emt 0:00:05]} Rxc5 {[%emt 0:00:04]} 43. Rd1 {[%emt 0:04:04]} Rc3 {[%emt 0:03:31]} 44. f4 {[%emt 0:00:55]} d3 {[%emt 0:03:17]} 45. Re3 {[%emt 0:01:00]} e4 {[%emt 0:01:26]} 46. fxg5 {[%emt 0:00:09]} d2 {[%emt 0:02:04]} 47. gxh6+ {[%emt 0:05:11]} Kxh6 {[%emt 0:00:03]} 48. Re2 {[%emt 0:01:29]} Rxg3+ {[%emt 0:01:54]} 49. Kf5 {[%emt 0:00:16]} e3 {[%emt 0:00:24]} 50. Ke6 {[%emt 0:00:13]} d4 {[%emt 0:00:26]} 51. Rf1 {[%emt 0:01:28]} d3 {[%emt 0:02:19]} 52. Rf6+ {[%emt 0:00:21]} Kh7 {[%emt 0:00:20]} 53. Rf7+ {[%emt 0:00:12]} Rg7 {[%emt 0:00:14]} 0-1

[Event "Satka Autumn 2018"]
[Site "Satka"]
[Date "2018.09.15"]
[Round "5"]
[White "Simakova, Elena"]
[Black "Filippova, Darya"]
[Result "1/2-1/2"]
[ECO "B13"]
[WhiteElo "1935"]
[BlackElo "2061"]
[Annotator "NA"]
[PlyCount "85"]
[EventDate "2018.09.11"]
[EventType "swiss"]
[EventCountry "RUS"]
[SourceTitle "playchess.com"]
[Source "ChessBase"]
[SourceQuality "1"]
[TimeControl "40/5400+30:1800+30"]

1. e4 {[%emt 0:00:00]} c6 {[%emt 0:00:04]} 2. d4 {[%emt 0:00:00]} d5 {[%emt 0:00:05]} 3. exd5 {[%emt 0:00:00]} cxd5 {[%emt 0:00:02]} 4. Nf3 {[%emt 0:00:01]} Nc6 {[%emt 0:06:23]} 5. Ne5 {[%emt 0:01:14] B13: Caro-Kann: Exchange Variation and Panov-Botvinnik Attack} e6 {[%emt 0:05:59]} 6. c3 {[%emt 0:01:22]} Nxe5 {[%emt 0:12:08]} 7. dxe5 {[%emt 0:00:08]} Ne7 {[%emt 0:01:36]} 8. Nd2 {[%emt 0:16:55]} Nc6 {[%emt 0:02:10]} 9. Nf3 {[%emt 0:00:25]} Qc7 {[%emt 0:01:42]} 10. Bf4 {[%emt 0:07:16]} h6 $146 {[%emt 0:01:41]} ({Predecessor:} 10... Be7 11. Bg3 Bd7 12. Bd3 g5 {½-½ (69) Carlsen,M (2714)-Dreev,A (2607) Moscow 2007}) 11. Bg3 {[%emt 0:06:51]} a6 {[%emt 0:07:23]} 12. Bd3 {[%emt 0:02:04]} b6 {[%emt 0:03:07]} 13. O-O {[%emt 0:02:46]} g5 {[%emt 0:00:59]} 14. Qe2 {[%emt 0:05:53]} Be7 {[%emt 0:01:28]} 15. Nd4 {[%emt 0:04:05]} h5 {[%emt 0:06:47]} 16. h3 {[%emt 0:02:14]} g4 {[%emt 0:03:51]} 17. hxg4 {[%emt 0:06:00]} h4 {[%emt 0:00:11]} 18. Bf4 {[%emt 0:01:08]} Bc5 {[%emt 0:04:24]} 19. Rac1 {[%emt 0:05:09]} Bb7 {[%emt 0:03:09]} 20. b4 {[%emt 0:03:40]} Bxd4 {[%emt 0:03:25]} 21. cxd4 {[%emt 0:00:08]} b5 {[%emt 0:06:38]} 22. a3 {[%emt 0:02:28]} Qb6 {[%emt 0:03:17]} 23. Be3 {[%emt 0:03:11]} h3 {[%emt 0:01:59]} 24. f3 {[%emt 0:11:15]} (24. gxh3 $142 Rxh3 25. Kg2) 24... Kd7 {[%emt 0:04:02]} 25. Qf2 {[%emt 0:02:01]} a5 {[%emt 0:04:57]} 26. Rc5 {[%emt 0:05:10]} hxg2 {[%emt 0:05:27]} 27. Kxg2 {[%emt 0:02:00]} Ba6 {[%emt 0:01:48]} 28. Rfc1 {[%emt 0:02:52]} Rac8 {[%emt 0:00:42]} 29. Bd2 {[%emt 0:01:09]} a4 {[%emt 0:04:08]} 30. f4 {[%emt 0:01:37]} Ne7 {[%emt 0:01:41]} 31. f5 {[%emt 0:01:13]} Rxc5 {[%emt 0:00:27]} 32. Rxc5 {[%emt 0:00:55]} Rg8 {[%emt 0:00:57]} 33. g5 {[%emt 0:02:25]} Ke8 {[%emt 0:01:47]} 34. f6 {[%emt 0:01:40]} Ng6 {[%emt 0:01:03]} 35. Bxb5+ {[%emt 0:01:13]} Bxb5 {[%emt 0:00:23]} 36. Rc8+ {[%emt 0:00:05]} Qd8 {[%emt 0:00:32]} 37. Rxd8+ {[%emt 0:00:04]} Kxd8 {[%emt 0:00:05]} 38. Be1 {[%emt 0:01:49]} Kd7 $18 {[%emt 0:00:08]} 39. Kg3 {[%emt 0:00:23]} Rc8 {[%emt 0:00:43]} 40. Qd2 {[%emt 0:00:00]} Rh8 {[%emt 0:00:00]} 41. Qc2 {[%emt 0:11:36]} Rc8 {[%emt 0:00:59]} 42. Qh2 {[%emt 0:04:32]} Rh8 {[%emt 0:00:10]} 43. Qc2 {[%emt 0:00:07]} 1/2-1/2

[Event "Satka Autumn 2018"]
[Site "Satka"]
[Date "2018.09.15"]
[Round "5"]
[White "Nasybullina, Dayana"]
[Black "Mirgalina, Anna"]
[Result "1-0"]
[ECO "A38"]
[WhiteElo "1809"]
[BlackElo "1339"]
[Annotator "NA"]
[PlyCount "65"]
[EventDate "2018.09.11"]
[EventType "swiss"]
[EventCountry "RUS"]
[SourceTitle "playchess.com"]
[Source "ChessBase"]
[SourceQuality "1"]
[TimeControl "40/5400+30:1800+30"]

1. Nf3 {[%emt 0:00:00]} c5 {[%emt 0:00:00]} 2. c4 {[%emt 0:00:00]} Nf6 {[%emt 0:00:00]} 3. g3 {[%emt 0:00:02]} g6 {[%emt 0:00:18]} 4. Bg2 {[%emt 0:00:09]} Bg7 {[%emt 0:00:08]} 5. O-O {[%emt 0:00:08]} O-O {[%emt 0:00:10]} 6. Nc3 {[%emt 0:00:07]} Nc6 {[%emt 0:00:49]} 7. d3 {[%emt 0:00:13]} d6 {[%emt 0:01:14]} 8. Bg5 {[%emt 0:00:22]} Bd7 {[%emt 0:01:16] A38: Symmetrical English vs ...g6: 4 Bg2 Bg7 5 Nf3 Nf6} 9. Rb1 {[%emt 0:00:23]} Qc8 {[%emt 0:00:55]} 10. a3 {[%emt 0:02:40]} Re8 {[%emt 0:04:50]} 11. b4 {[%emt 0:02:40]} b6 {[%emt 0:05:36]} 12. Qd2 {[%emt 0:09:44]} Rb8 {[%emt 0:00:41]} 13. Rfc1 $146 {[%emt 0:01:03]} ({Predecessor:} 13. Bh6 Bh8 14. Nd5 Bh3 15. Nxf6+ Bxf6 16. b5 {1-0 (46) Pribyl,J (2405)-Tatarko,J (2315) Czechia 1996}) 13... Bh3 {[%emt 0:02:28]} 14. Bh1 {[%emt 0:00:56]} Ng4 {[%emt 0:06:54]} 15. Nd5 {[%emt 0:01:08]} h6 {[%emt 0:04:54]} (15... f6 $1 $11 16. Nf4 fxg5 17. Nxg5 {[#]} Nxf2 $1 {[%mdl 512]} 18. Kxf2 Bd7) 16. b5 {[%emt 0:03:06]} e6 {[%emt 0:07:37]} 17. Nf4 {[%emt 0:20:57]} Nce5 {[%emt 0:03:19]} 18. Nxh3 {[%emt 0:01:49]} hxg5 {[%emt 0:00:08]} 19. Nxe5 {[%emt 0:01:23]} Nxe5 {[%emt 0:00:11]} 20. Qxg5 {[%emt 0:00:48]} Qd8 {[%emt 0:00:40]} 21. Qxd8 {[%emt 0:03:18]} Rbxd8 {[%emt 0:00:06]} 22. a4 {[%emt 0:01:47]} d5 {[%emt 0:00:33]} 23. cxd5 {[%emt 0:02:19]} exd5 {[%emt 0:00:08]} 24. Rc2 {[%emt 0:02:00]} d4 {[%emt 0:00:32]} 25. Ng5 {[%emt 0:03:38]} Rb8 {[%emt 0:00:21]} 26. Bd5 {[%emt 0:03:07]} Red8 {[%emt 0:01:31]} 27. Bc4 {[%emt 0:01:59]} Nxc4 {[%emt 0:01:12]} 28. Rxc4 {[%emt 0:03:02]} Re8 {[%emt 0:00:15]} 29. Kf1 {[%emt 0:00:06]} Re7 {[%emt 0:00:11]} 30. Ra1 {[%emt 0:02:18]} Rbe8 {[%emt 0:00:36]} 31. Ra2 {[%emt 0:00:18]} Be5 {[%emt 0:00:24]} 32. a5 $18 {[%emt 0:00:44]} bxa5 {[%emt 0:00:26]} (32... Kg7 {was worth a try.} 33. axb6 axb6) 33. Rxa5 {[%emt 0:06:13]} ({Don't do} 33. Rxc5 $6 Bc7 $16) 1-0

[Event "Satka Autumn 2018"]
[Site "Satka"]
[Date "2018.09.15"]
[Round "5"]
[White "Mikheeva, Galina"]
[Black "Aleshina, Arina"]
[Result "1/2-1/2"]
[ECO "C01"]
[WhiteElo "1767"]
[BlackElo "1319"]
[Annotator "NA"]
[PlyCount "94"]
[EventDate "2018.09.11"]
[EventType "swiss"]
[EventCountry "RUS"]
[SourceTitle "playchess.com"]
[Source "ChessBase"]
[SourceQuality "1"]
[TimeControl "40/5400+30:1800+30"]

1. e4 {[%emt 0:00:00]} e6 {[%emt 0:00:00]} 2. d4 {[%emt 0:00:00]} d5 {[%emt 0:00:00]} 3. exd5 {[%emt 0:00:00]} exd5 {[%emt 0:00:00]} 4. Bd3 {[%emt 0:00:02]} Bd6 {[%emt 0:00:34]} 5. Qf3 {[%emt 0:00:24]} c6 {[%emt 0:02:04]} 6. Ne2 {[%emt 0:02:20]} Qf6 {[%emt 0:00:41]} 7. Bf4 {[%emt 0:00:22]} Bxf4 {[%emt 0:01:40]} 8. Qxf4 {[%emt 0:00:08]} Qxf4 {[%emt 0:00:21]} 9. Nxf4 {[%emt 0:00:06]} Nh6 {[%emt 0:00:57]} 10. O-O {[%emt 0:03:59]} O-O {[%emt 0:00:09]} 11. Re1 {[%emt 0:05:33]} Bf5 {[%emt 0:02:27]} 12. c3 {[%emt 0:13:37]} Bxd3 {[%emt 0:04:06]} 13. Nxd3 {[%emt 0:00:07]} Na6 {[%emt 0:00:09]} 14. Re7 {[%emt 0:02:45]} Rab8 {[%emt 0:03:34]} 15. Nd2 {[%emt 0:03:25]} Nf5 {[%emt 0:05:04]} 16. Re5 {[%emt 0:14:13]} g6 {[%emt 0:20:52]} 17. Rae1 {[%emt 0:04:22]} Rfd8 {[%emt 0:10:33]} 18. g4 {[%emt 0:07:48]} Ng7 {[%emt 0:03:56]} 19. f4 {[%emt 0:05:55]} h6 {[%emt 0:06:55]} 20. h4 {[%emt 0:05:35]} h5 {[%emt 0:07:51]} 21. gxh5 {[%emt 0:14:26]} Nxh5 {[%emt 0:00:41]} 22. Kf2 {[%emt 0:01:22]} Ng7 {[%emt 0:03:07]} 23. Rg1 {[%emt 0:01:55]} Re8 {[%emt 0:02:38]} 24. Nf3 {[%emt 0:06:03]} Nc7 {[%emt 0:06:29]} 25. Nc5 {[%emt 0:04:43]} Rxe5 {[%emt 0:02:44]} 26. fxe5 {[%emt 0:01:09]} Nce6 {[%emt 0:00:42]} 27. Nxe6 {[%emt 0:01:49]} Nxe6 {[%emt 0:00:13]} 28. Ke3 {[%emt 0:00:13]} Kf8 {[%emt 0:00:55]} 29. Ng5 {[%emt 0:01:21]} Nxg5 {[%emt 0:00:33]} 30. hxg5 {[%emt 0:00:29]} Kg7 {[%emt 0:00:10]} 31. Rh1 {[%emt 0:00:40]} Re8 {[%emt 0:01:54]} 32. Kf4 {[%emt 0:00:28]} Re7 {[%emt 0:00:23]} 33. Rh2 {[%emt 0:00:07]} Re8 {[%emt 0:00:06]} 34. Rh3 {[%emt 0:00:22]} Rd8 {[%emt 0:00:26]} 35. Rh1 {[%emt 0:00:17]} Re8 {[%emt 0:00:05]} 36. b3 {[%emt 0:00:41]} Rd8 {[%emt 0:00:37]} 37. Rh2 {[%emt 0:00:23]} Rd7 {[%emt 0:00:08]} 38. Re2 {[%emt 0:00:08]} Re7 {[%emt 0:01:05]} 39. Re1 {[%emt 0:00:42]} Re8 {[%emt 0:00:05]} 40. Rh1 {[%emt 0:00:00]} b5 {[%emt 0:00:00]} 41. c4 {[%emt 0:14:30]} bxc4 {[%emt 0:02:20]} 42. bxc4 {[%emt 0:00:08]} Rb8 {[%emt 0:00:09]} 43. cxd5 {[%emt 0:01:20]} cxd5 {[%emt 0:00:10]} 44. Rh2 {[%emt 0:01:28]} Rb4 {[%emt 0:00:46]} 45. Ke3 {[%emt 0:00:12]} Rc4 {[%emt 0:01:04]} 46. Kd3 {[%emt 0:00:30]} Ra4 {[%emt 0:00:20]} 47. Rc2 {[%emt 0:06:28]} Ra3+ {[%emt 0:00:33]} 1/2-1/2

[Event "Satka Autumn 2018"]
[Site "Satka"]
[Date "2018.09.15"]
[Round "5"]
[White "Stroganova, Karina"]
[Black "Trapeznikova, Darya"]
[Result "0-1"]
[ECO "A04"]
[WhiteElo "1711"]
[BlackElo "2107"]
[Annotator "NA"]
[PlyCount "74"]
[EventDate "2018.09.11"]
[EventType "swiss"]
[EventCountry "RUS"]
[SourceTitle "playchess.com"]
[Source "ChessBase"]
[SourceQuality "1"]
[TimeControl "40/5400+30:1800+30"]

{[%evp 22,74,81,32767,32767,32767,100,88,98,32767,32767,32767,32767,32767,32767,32767,32767,32767,32767,32767,32767,32767,32767,32767,32767,32767,118,32767,140,32767,124,119,176,112,154,144,135,-311,-380,-706,-118,-128,-120,-128,-110,-110,-115,-127,-108,-490,-120,-151,-75,-29989,-29990]} 1. Nf3 {[%emt 0:00:00]} f5 {[%emt 0:00:00]} 2. d3 {[%emt 0:00:00]} d6 {[%emt 0:00:00]} 3. e4 {[%emt 0:00:24]} e5 {[%emt 0:00:03]} 4. g3 {[%emt 0:01:20]} Nf6 {[%emt 0:00:21] A04: Holländisches System ohne Übergang in andere Systeme} 5. Nc3 {[%emt 0:00:18]} c5 {[%emt 0:00:37]} 6. Nh4 {[%emt 0:01:19]} (6. Bg2 Nc6 7. O-O Be7 8. Bg5 O-O 9. Nd2 Be6 10. a4 Qd7 11. exf5 Bxf5 12. Bxf6 Bxf6 {0-1 (40) Perez Ponsa,F (2553)-Hjartarson,J (2536) chess.com INT 2018}) 6... fxe4 {[%emt 0:01:39]} 7. dxe4 {[%emt 0:03:41]} Be6 {[%emt 0:00:46]} 8. Bg2 {[%emt 0:00:54]} Nc6 $146 {[%emt 0:00:36]} ({Vorgänger:} 8... Be7 9. Nf5 O-O 10. O-O Nc6 11. Bg5 Bc4 12. Re1 {1-0 (47) Houska,J (2406)-Waddington,M (2110) Hull 2018}) 9. Nd5 {[%emt 0:01:23]} Be7 {[%emt 0:10:00]} 10. Nf5 {[%emt 0:06:16]} Bxf5 {[%emt 0:05:24]} 11. exf5 {[%emt 0:00:36]} O-O {[%emt 0:03:04]} 12. c3 {[%emt 0:04:57]} Kh8 {[%emt 0:00:56]} 13. O-O {[%emt 0:02:06]} Nxd5 {[%emt 0:12:40]} 14. Bxd5 {[%emt 0:00:55]} Rxf5 {[%emt 0:01:04]} 15. Be4 {[%emt 0:00:22]} Rf6 {[%emt 0:00:17]} 16. Bg5 {[%emt 0:00:52]} Rf7 {[%emt 0:05:16]} 17. Qh5 {[%emt 0:05:21]} g6 {[%emt 0:00:06]} 18. Bxg6 {[%emt 0:00:09]} Rg7 {[%emt 0:00:04]} 19. Bxe7 {[%emt 0:00:38]} Nxe7 {[%emt 0:05:44]} 20. Be4 {[%emt 0:01:13]} Ng8 {[%emt 0:10:39]} 21. Bg2 {[%emt 0:00:50]} Nf6 {[%emt 0:00:33]} 22. Qf5 {[%emt 0:00:29]} Qe7 {[%emt 0:01:46]} 23. Bxb7 {[%emt 0:07:10]} Rf8 {[%emt 0:08:49]} 24. Bg2 {[%emt 0:01:06]} d5 {[%emt 0:03:42]} 25. Qc2 {[%emt 0:04:36]} e4 {[%emt 0:03:33]} 26. Rad1 {[%emt 0:01:12]} Ng4 {[%emt 0:02:04] [#]} 27. Bh3 {[%emt 0:06:03]} ({Weaker is} 27. Rxd5 e3 $11) (27. Qe2 $1 $18) 27... Qe5 {[%emt 0:08:44]} 28. Qe2 {[%emt 0:01:28]} Rf3 {[%emt 0:01:27]} 29. Rde1 $2 {[%emt 0:00:47] [#]} (29. Bxg4 $16 {keeps the pressure on.} Rxg4 30. Rde1) 29... Nxh2 $1 {[%emt 0:02:11]} 30. Kh1 $19 {[%emt 0:09:13]} (30. Rd1 $142 Nxf1 31. Rxf1) 30... Qd6 $2 {[%emt 0:04:49]} ({Weaker is} 30... Nxf1 31. Qxf3 Nd2 32. Qf8+ Rg8 33. Qf7 $11 (33. Qxc5 Nf3 $14)) (30... Rg6 $19 31. Qb5 (31. Kxh2 $2 Rgxg3 $1 32. fxg3 Qxg3+ 33. Kh1 Qxh3+ 34. Qh2 Rxf1+ 35. Rxf1 Qxf1+ 36. Qg1 Qxg1+ (36... Qh3+ 37. Qh2 Qxh2+ 38. Kxh2 h5) 37. Kxg1 h5 $19 (37... d4 $19)) 31... Nxf1 32. Rxf1 e3 33. Qxc5 exf2) 31. Rg1 {[%emt 0:01:32]} Ng4 {[%emt 0:00:04]} 32. Bxg4 {[%emt 0:00:27]} Rxg4 {[%emt 0:00:20]} 33. Rg2 {[%emt 0:00:40]} d4 {[%emt 0:03:22]} 34. cxd4 {[%emt 0:01:16]} cxd4 {[%emt 0:00:09]} 35. Rh2 $2 {[%emt 0:04:32]} (35. b3 $17 {is a better chance.}) 35... d3 $2 {[%emt 0:00:49]} (35... Qc6 $19 36. Kg2 d3) 36. Qd2 {[%emt 0:00:10] [#]} Qc6 {[%emt 0:02:37]} (36... e3 $142 $1 {[%mdl 512]} 37. Qc3+ (37. Rxe3 Rxe3) 37... Rf6 38. fxe3 Rxg3) 37. Qb4 $2 {[%emt 0:00:21]} (37. Qc3+ $17 Qxc3 38. bxc3) 37... e3 {[%emt 0:01:04]} 0-1